fUSD/lending_fUSD_20251213
["ID","MTS","AMOUNT","RATE_DAILY","PERIOD"]
[398431307,1765647040053,-154.83,0.00016405,2]
[398431308,1765647040062,-150.0,0.00016425,2]
[398431309,1765647040072,-325.54329642,0.00016438,2]
[398431310,1765647040082,-660.37615225,0.00016486,2]
[398431311,1765647040091,-150.0,0.00016527,2]
[398431312,1765647040101,-300.0,0.00016538,2]
[398431313,1765647040111,-995.0,0.00016538,2]
[398431314,1765647040120,-244.0,0.00016538,2]
[398431315,1765647040130,-228.15089245,0.00016548,2]
[398431316,1765647040139,-150.0,0.0001665,2]
[398431317,1765647040149,-150.0,0.0001665,2]
[398431318,1765647040160,-150.0,0.0001665,2]
[398431319,1765647040170,-150.0,0.00016691,2]
[398431320,1765647040181,-192.30137816,0.000167,2]
[398431321,1765647040192,-200.03,0.000167,2]
[398431322,1765647040202,-192.30137816,0.00016743,2]
[398431323,1765647040212,-660.37615225,0.00016769,2]
[398431324,1765647040223,-52182.1109,0.00016786,2]
[398431325,1765647040235,-150.0,0.000168,2]
[398431326,1765647040246,-150.0,0.00016855,2]
[398431327,1765647040256,-150.0,0.00016875,2]
[398431328,1765647040266,-1000.0,0.00016876,2]
[398431329,1765647040276,-1000.0,0.00016876,2]
[398431330,1765647040287,-1000.0,0.00016876,2]
[398431331,1765647040297,-1000.0,0.00016876,2]
[398431332,1765647040307,-1000.0,0.00016876,2]
[398431334,1765647040316,-1000.0,0.00016876,2]
[398431335,1765647040325,-1000.0,0.00016876,2]
[398431336,1765647040335,-1000.0,0.00016876,2]
[398431337,1765647040345,-1000.0,0.00016876,2]
[398431338,1765647040355,-1000.0,0.00016876,2]
[398431340,1765647040365,-1000.0,0.00016876,2]
[398431342,1765647040374,-151.0,0.00016876,2]
[398431344,1765647040383,-151.0,0.00016883,2]
[398431346,1765647040392,-180.84204707,0.00016917,2]
[398431348,1765647040401,-155.37202418,0.00016918,2]
[398431350,1765647040411,-500.0,0.00016973,2]
[398431351,1765647040421,-500.0,0.00016973,2]
[398431354,1765647040431,-500.0,0.00016973,2]
[398431356,1765647040440,-42886.72477808,0.00017,2]
[398431358,1765647040459,-322.71150004,0.00017,2]
[398431361,1765647040470,-1111.742582,0.00017,2]
[398431614,1765647042947,-345.5261616,0.00017,2]
[398431626,1765647043053,-331.8895825,0.00017,2]
[398432096,1765647048988,-169.74367198,0.00015999,2]
[398432098,1765647048997,-180.61885391,0.00015999,2]
[398432100,1765647049007,-646.3322318,0.00015999,2]
[398432102,1765647049015,-500.0,0.00016538,2]
[398432104,1765647049024,-500.0,0.00016812,2]
[398432106,1765647049034,-410083.05439109,0.00017,2]
[398432109,1765647049044,-4486.92001529,0.00017,2]
[398432112,1765647049070,-17003.70028845,0.00017,2]
[398432114,1765647049081,-93379.64019877,0.00017,2]
[398432432,1765647097903,500.0,0.0001582,2]
[398432486,1765647266381,500.0,0.000158,2]
[398432491,1765647375259,1542.66,0.00015821,2]
[398432492,1765647408712,1313.68,0.00015851,2]
[398432494,1765647433143,208.06,0.00015821,2]
[398432495,1765647475048,282.40564425,0.00015798,2]
[398432501,1765647503794,166.66,0.00015119,2]
[398432502,1765647504015,166.66,0.00015437,2]
[398432503,1765647504251,166.66,0.00015756,2]
[398432507,1765647581817,7695.88435575,0.00015854,2]
[398432508,1765647581840,10000.01,0.00015854,2]
[398432509,1765647581862,9062.79875125,0.00015854,2]
[398432511,1765647618449,917.8,0.00015659,2]
[398432515,1765647640292,3240.0,0.00015634,2]
[398432539,1765647903250,541.25,0.00013699,2]
[398432541,1765647920069,150.0,0.00015288,2]
[398432542,1765647920100,150.0,0.00015854,2]
[398432543,1765647920146,150.0,0.00015288,2]
[398432544,1765647920177,150.0,0.00015854,2]
[398432545,1765647920231,150.0,0.00015288,2]
[398432546,1765647920279,150.0,0.0001553,2]
[398432547,1765647920348,150.0,0.00015773,2]
[398432548,1765647926367,150.0,0.00015288,2]
[398432549,1765647926437,150.0,0.00015854,2]
[398432550,1765647926709,150.0,0.00015288,2]
[398432551,1765647926741,150.0,0.00015288,2]
[398432552,1765647926770,150.0,0.00015442,2]
[398432553,1765647927170,150.0,0.00015597,2]
[398432554,1765647927214,150.0,0.00015751,2]
[398432555,1765647929855,150.0,0.00015288,2]
[398432556,1765647929906,150.0,0.00015854,2]
[398432557,1765647937795,150.0,0.00015288,2]
[398432558,1765647937868,150.0,0.00015288,2]
[398432559,1765647937950,150.0,0.00015288,2]
[398432560,1765647944384,150.0,0.00015288,2]
[398432565,1765648002954,1100.84,0.00015546,2]
[398432579,1765648091421,10000.01,0.00015805,2]
[398432580,1765648091446,10000.01,0.00015805,2]
[398432581,1765648091470,7188.81489335,0.00015805,2]
[398432583,1765648151938,39912.6053,0.000158,2]
[398432588,1765648186537,9342.3265,0.000158,2]
[398432590,1765648209892,158.97,0.000158,2]
[398432620,1765648232801,-838.36217896,0.00015884,2]
[398432621,1765648232811,-195.0,0.00015887,2]
[398432622,1765648232820,-200.0,0.0001589,2]
[398432623,1765648232830,-500.0,0.0001589,2]
[398432624,1765648232839,-200.0,0.0001589,2]
[398432625,1765648232851,-250.0,0.00015892,2]
[398432626,1765648232861,-195.0,0.00015892,2]
[398432627,1765648232871,-1200.0,0.00015897,2]
[398432628,1765648232881,-1200.0,0.00015898,2]
[398432629,1765648232891,-300.0,0.00015898,2]
[398432630,1765648232899,-300.0,0.00015898,2]
[398432631,1765648232909,-300.0,0.00015898,2]
[398432632,1765648232919,-500.0,0.00015899,2]
[398432633,1765648232929,-500.0,0.00015899,2]
[398432634,1765648232938,-500.0,0.00015899,2]
[398432635,1765648232949,-500.0,0.00015899,2]
[398432636,1765648232959,-500.0,0.00015899,2]
[398432637,1765648232969,-500.0,0.00015899,2]
[398432638,1765648232979,-106.9492257,0.00015899,2]
[398432639,1765648233008,-393.0507743,0.00015899,2]
[398432640,1765648233018,-500.0,0.00015899,2]
[398432641,1765648233029,-500.0,0.00015899,2]
[398432642,1765648233038,-500.0,0.00015899,2]
[398432643,1765648233049,-500.0,0.00015899,2]
[398432644,1765648233059,-500.0,0.00015899,2]
[398432645,1765648233069,-500.0,0.00015899,2]
[398432646,1765648233079,-500.0,0.00015899,2]
[398432647,1765648233089,-500.0,0.00015899,2]
[398432648,1765648233099,-500.0,0.00015899,2]
[398432649,1765648233108,-500.0,0.00015899,2]
[398432650,1765648233118,-500.0,0.00015899,2]
[398432651,1765648233128,-500.0,0.00015899,2]
[398432652,1765648233137,-500.0,0.00015899,2]
[398432653,1765648233147,-311.74094139,0.00015899,2]
[398432654,1765648233156,-500.0,0.00015899,2]
[398432655,1765648233165,-500.0,0.00015899,2]
[398432656,1765648233175,-500.0,0.00015899,2]
[398432657,1765648233184,-500.0,0.00015899,2]
[398432658,1765648233195,-500.0,0.00015899,2]
[398432659,1765648233205,-500.0,0.00015899,2]
[398432660,1765648233215,-500.0,0.00015899,2]
[398432661,1765648233224,-500.0,0.00015899,2]
[398432662,1765648233234,-500.0,0.00015899,2]
[398432663,1765648233244,-500.0,0.00015899,2]
[398432664,1765648233255,-500.0,0.00015899,2]
[398432665,1765648233265,-500.0,0.00015899,2]
[398432666,1765648233275,-500.0,0.00015899,2]
[398432667,1765648233284,-500.0,0.00015899,2]
[398432668,1765648233294,-500.0,0.00015899,2]
[398432669,1765648233304,-500.0,0.00015899,2]
[398432670,1765648233314,-500.0,0.00015899,2]
[398432671,1765648233323,-500.0,0.00015899,2]
[398432672,1765648233335,-500.0,0.00015899,2]
[398432673,1765648233344,-500.0,0.00015899,2]
[398432674,1765648233353,-500.0,0.00015899,2]
[398432675,1765648233363,-500.0,0.00015899,2]
[398432676,1765648233373,-500.0,0.00015899,2]
[398432677,1765648233383,-500.0,0.00015899,2]
[398432678,1765648233393,-500.0,0.00015899,2]
[398432679,1765648233403,-500.0,0.00015899,2]
[398432680,1765648233413,-1117.6,0.00015899,2]
[398432681,1765648233426,-150.0,0.00015905,2]
[398432682,1765648233436,-200.0,0.00015954,2]
[398432683,1765648233445,-2964.4798,0.00015981,2]
[398432684,1765648233455,-4697.22,0.00015996,2]
[398432685,1765648233466,-164.18,0.00016,14]
[398432686,1765648233476,-166.9,0.00016015,2]
[398432687,1765648233486,-150.0,0.00016016,2]
[398432688,1765648233498,-27188.83489331,0.00016038,2]
[398432689,1765648233508,-150.0,0.0001606,2]
[398432690,1765648233518,-166.66,0.00016074,2]
[398432691,1765648233527,-150.0,0.00016137,2]
[398432692,1765648233537,-500.0,0.00016173,2]
[398432693,1765648233546,-1117.6,0.00016173,2]
[398432694,1765648233557,-197.6739,0.00016209,2]
[398432695,1765648233568,-150.0,0.00016214,2]
[398432696,1765648233580,-150.0,0.00016258,2]
[398432697,1765648233591,-27188.83489331,0.00016271,2]
[398432698,1765648233602,-150.0,0.00016369,2]
[398432699,1765648233612,-166.66,0.00016392,2]
[398432700,1765648233624,-196.14817245,0.00016399,2]
[398432701,1765648233641,-303.85182755,0.00016399,2]
[398432702,1765648233650,-500.0,0.00016399,2]
[398432703,1765648233660,-233.22449763,0.00016399,2]
[398432704,1765648233669,-500.0,0.00016399,2]
[398432705,1765648233683,-500.0,0.00016399,2]
[398432706,1765648233692,-150.0,0.0001642,2]
[398432707,1765648233702,-150.0,0.0001642,2]
[398432708,1765648233712,-150.0,0.0001642,2]
[398432709,1765648233722,-150.0,0.0001642,2]
[398432710,1765648233732,-9881.97,0.00016438,2]
[398432711,1765648233745,-500.0,0.00016447,2]
[398432712,1765648233755,-1117.6,0.00016447,2]
[398432713,1765648233765,-999.0,0.00016484,3]
[398432714,1765648233775,-150.0,0.00016501,2]
[398432715,1765648233787,-14566.56479416,0.00016503,2]
[398432716,1765648233799,-12622.27009915,0.00016503,2]
[398432717,1765648233809,-150.0,0.00016523,2]
[398432718,1765648233819,-166.9,0.00016676,2]
[398432719,1765648233830,-150.0,0.00016677,2]
[398432720,1765648233839,-166.66,0.00016711,2]
[398432721,1765648233849,-500.0,0.00016721,2]
[398432722,1765648233860,-1117.6,0.00016721,2]
[398432723,1765648233869,-21856.80833128,0.00016736,2]
[398432726,1765648238625,-1130.77440431,0.00016401,2]
[398432727,1765648238634,-5332.02656203,0.00016736,2]
[398432728,1765648238654,-1628.91162981,0.0001674,2]
[398432729,1765648238664,-150.0,0.00016744,2]
[398432730,1765648238674,-151.0,0.00016782,2]
[398432731,1765648238685,-1000.0,0.00016782,2]
[398432732,1765648238694,-1000.0,0.00016782,2]
[398432733,1765648238705,-1000.0,0.00016782,2]
[398432734,1765648238714,-1000.0,0.00016782,2]
[398432735,1765648238724,-1000.0,0.00016782,2]
[398432736,1765648238734,-1000.0,0.00016782,2]
[398432737,1765648238744,-352.61826565,0.00016782,2]
[398432738,1765648238754,-300.0,0.00016782,2]
[398432739,1765648238764,-1000.0,0.000168,2]
[398432740,1765648238774,-150.0,0.00016832,2]
[398432741,1765648238785,-291.0,0.00016877,2]
[398432742,1765648238794,-218.23688189,0.00016887,2]
[398432743,1765648238804,-10255.25850494,0.00016894,2]
[398432744,1765648238815,-1421.93097406,0.000169,2]
[398432745,1765648238825,-2544.23108023,0.000169,2]
[398432746,1765648238835,-152.80097451,0.000169,2]
[398432747,1765648238845,-11719.87305593,0.000169,2]
[398432748,1765648238855,-27188.83489331,0.00016969,2]
[398432749,1765648238865,-500.0,0.00016973,2]
[398432750,1765648238875,-500.0,0.00016973,2]
[398432751,1765648238885,-500.0,0.00016973,2]
[398432752,1765648238895,-500.0,0.00016973,2]
[398432753,1765648238905,-500.0,0.00016973,2]
[398432754,1765648238915,-500.69569811,0.00016973,2]
[398432755,1765648238924,-482.77559391,0.00016973,2]
[398432756,1765648238934,-500.0,0.00016973,2]
[398432757,1765648238945,-500.0,0.00016973,2]
[398432758,1765648238955,-276.1948738,0.00016973,2]
[398432759,1765648238966,-500.0,0.00016973,2]
[398432760,1765648238977,-168.44035917,0.00016973,2]
[398432761,1765648238987,-500.26433138,0.00016973,2]
[398432762,1765648238998,-500.0,0.00016973,2]
[398432763,1765648239008,-500.0,0.00016973,2]
[398432764,1765648239018,-500.0,0.00016973,2]
[398432765,1765648239029,-165.64214933,0.00016973,2]
[398432766,1765648239039,-500.0,0.00016973,2]
[398432767,1765648239050,-500.6273257,0.00016973,2]
[398432768,1765648239060,-500.60353783,0.00016973,2]
[398432769,1765648239070,-500.40431242,0.00016973,2]
[398432770,1765648239080,-376.6677597,0.00016973,2]
[398432771,1765648239090,-201.4427787,0.00016973,2]
[398432772,1765648239101,-161.89218432,0.00016973,2]
[398432773,1765648239110,-9848.9465546,0.00016975,2]
[398432774,1765648239120,-3435.3029657,0.00016975,2]
[398432775,1765648239131,-179.7465034,0.00016975,2]
[398432776,1765648239142,-561.62,0.00016986,2]
[398432777,1765648239152,-267.36392203,0.00016986,2]
[398432778,1765648239162,-264.24246333,0.00016986,2]
[398432779,1765648239172,-150.0,0.00016986,2]
[398432780,1765648239184,-150.0,0.00016986,2]
[398432781,1765648239195,-187.07956536,0.00016986,2]
[398432782,1765648239205,-150.0,0.00016986,2]
[398432783,1765648239215,-150.0,0.00016986,2]
[398432784,1765648239226,-15728.66,0.00016986,2]
[398432785,1765648239236,-196.93257166,0.0001699,2]
[398432786,1765648239245,-500.0,0.00016995,2]
[398432787,1765648239255,-1117.6,0.00016995,2]
[398432788,1765648239265,-227680.04446764,0.00016997,2]
[398432789,1765648239275,-307.76658629,0.00016999,2]
[398432790,1765648239284,-1593791.87338317,0.00017,2]
[398432794,1765648240101,-1023.62606433,0.00016401,2]
[398432795,1765648240111,-1077.05422963,0.00016401,2]
[398432796,1765648240120,-4158.10325994,0.00017,2]
[398432797,1765648240155,-761.1,0.00017,2]
[398432798,1765648240209,-857.81402166,0.00017,2]
[398432799,1765648240263,-467.80780018,0.00017,2]
[398432800,1765648240274,-404.79263,0.00017,2]
[398432825,1765648243983,-1144.7816476,0.00016401,2]
[398432826,1765648243993,-477.29065604,0.00016401,2]
[398432827,1765648244005,-547.25276418,0.00016401,2]
[398432828,1765648244014,-3304.55407849,0.00017,2]
[398432829,1765648244025,-355.434006,0.00017,2]
[398432830,1765648244039,-2454.60094833,0.00017,2]
[398432831,1765648244056,-841.0,0.00017,2]
[398432832,1765648244075,-6561.4500775,0.00017,2]
[398432833,1765648244088,-642.11566635,0.00017,2]
[398432835,1765648246009,-708.0,0.00016222,2]
[398432836,1765648246018,-1111.80083979,0.00016401,2]
[398432837,1765648246028,-1082.60267326,0.00016401,2]
[398432838,1765648246037,-26509.70828125,0.00017,2]
[398432839,1765648246049,-972.51393802,0.00017,2]
[398432840,1765648246063,-4851.58305577,0.00017,2]
[398432841,1765648246075,-430114.56963597,0.00017,2]
[398432842,1765648246084,-250.0,0.00017,2]
[398432843,1765648246094,-163.39976915,0.00017,2]
[398432844,1765648246104,-2000.0,0.00017,2]
[398432845,1765648246115,-200.0,0.00017,2]
[398432846,1765648246124,-200.0,0.00017,2]
[398432847,1765648246134,-200.22465506,0.00017,2]
[398432848,1765648246143,-10255.25850494,0.00017006,2]
[398432849,1765648246153,-510.0,0.00017027,2]
[398432850,1765648246163,-481.04173315,0.00017049,2]
[398432851,1765648246172,-1421.93097406,0.00017067,2]
[398432852,1765648246181,-368.0,0.00017079,2]
[398432853,1765648246190,-10255.25850494,0.00017118,2]
[398432854,1765648246200,-200.0,0.00017138,2]
[398432855,1765648246212,-200.0,0.0001717,2]
[398432856,1765648246222,-200.0,0.0001717,2]
[398432857,1765648246232,-27188.83489331,0.00017202,2]
[398432858,1765648246241,-297.6,0.00017216,2]
[398432859,1765648246251,-1606.0,0.00017218,2]
[398432860,1765648246260,-1324.0,0.00017218,2]
[398432861,1765648246271,-3450.0,0.00017218,2]
[398432862,1765648246280,-611.0,0.00017218,2]
[398432863,1765648246290,-642.0,0.00017218,2]
[398432864,1765648246300,-1261.0,0.00017218,2]
[398432865,1765648246310,-1209.222,0.00017218,2]
[398432866,1765648246323,-910.0,0.00017218,2]
[398432867,1765648246333,-418.0,0.00017218,2]
[398432868,1765648246342,-563.0,0.00017218,2]
[398432869,1765648246351,-150.0,0.00017218,2]
[398432870,1765648246361,-4796.0,0.00017218,2]
[398432871,1765648246370,-2545.83,0.00017218,2]
[398432872,1765648246380,-10255.25850494,0.00017229,2]
[398432873,1765648246389,-1421.93097406,0.00017233,2]
[398432874,1765648246398,-152.80097449,0.00017233,2]
[398432875,1765648246410,-168.0,0.00017253,2]
[398432876,1765648246423,-561.62,0.0001726,2]
[398432877,1765648246432,-500.0,0.00017269,2]
[398432878,1765648246441,-1117.6,0.00017269,2]
[398432879,1765648246450,-168.0,0.00017279,2]
[398432880,1765648246460,-168.0,0.00017315,2]
[398432881,1765648246469,-166.9,0.00017337,2]
[398432882,1765648246478,-10255.25850494,0.00017341,2]
[398432883,1765648246487,-200.0,0.00017342,2]
[398432884,1765648246498,-200.0,0.00017342,2]
[398432885,1765648246514,-154.83,0.0001737,2]
[398432886,1765648246534,-1508.0,0.00017384,2]
[398432887,1765648246553,-420.0,0.00017384,2]
[398432888,1765648246575,-420.0,0.00017384,2]
[398432889,1765648246594,-1421.93097406,0.000174,2]
[398432890,1765648246612,-27188.83489331,0.00017434,2]
[398432891,1765648246631,-10255.25850494,0.00017453,2]
[398432892,1765648246652,-1680.0,0.0001747,2]
[398432893,1765648246672,-5000.0,0.00017473,3]
[398432894,1765648246692,-195.0,0.00017473,2]
[398432895,1765648246710,-300.0,0.00017473,2]
[398432896,1765648246729,-184.58021137,0.00017473,2]
[398432897,1765648246743,-2417.441,0.00017476,2]
[398432898,1765648246762,-172.9032292,0.00017476,2]
[398432899,1765648246774,-1110.49710129,0.00017479,3]
[398432900,1765648246790,-250.0,0.00017479,2]
[398432901,1765648246804,-250.0,0.00017479,2]
[398432902,1765648246818,-300.0,0.00017479,2]
[398432903,1765648246839,-2500.0,0.00017479,2]
[398432904,1765648246854,-2325.82104836,0.00017479,2]
[398432905,1765648246872,-174.17895164,0.00017479,2]
[398432906,1765648246887,-2500.0,0.00017479,2]
[398432907,1765648246901,-2037.82104836,0.00017479,2]
[398432908,1765648246918,-462.17895164,0.00017479,2]
[398432909,1765648246932,-1226.36114455,0.00017479,2]
[398432910,1765648246949,-1273.63885545,0.00017479,2]
[398432911,1765648246965,-1100.84,0.00017489,2]
[398432912,1765648246980,-200.0,0.00017515,2]
[398432913,1765648246996,-200.0,0.00017515,2]
[398432914,1765648247010,-1000.0,0.00017521,2]
[398432915,1765648247026,-1000.0,0.00017521,2]
[398432916,1765648247041,-500.0,0.00017533,2]
[398432917,1765648247058,-561.62,0.00017534,2]
[398432918,1765648247075,-500.0,0.00017543,2]
[398432919,1765648247090,-1117.6,0.00017543,2]
[398432920,1765648247106,-10255.25850494,0.00017565,2]
[398432921,1765648247120,-7429.0,0.00017567,2]
[398432922,1765648247135,-1421.93097406,0.00017567,2]
[398432923,1765648247151,-168.0,0.00017577,2]
[398432924,1765648247166,-5090.24096652,0.0001764,2]
[398432925,1765648247182,-27188.83489331,0.00017667,2]
[398432926,1765648247198,-10255.25850494,0.00017676,2]
[398432927,1765648247213,-150.0,0.00017725,2]
[398432928,1765648247228,-168.00488833,0.00017725,2]
[398432929,1765648247243,-150.0,0.00017725,2]
[398432930,1765648247258,-150.0,0.00017725,2]
[398432931,1765648247273,-150.0,0.00017725,2]
[398432932,1765648247288,-150.0,0.00017725,2]
[398432933,1765648247303,-164.51278261,0.00017725,2]
[398432934,1765648247318,-150.0,0.00017725,2]
[398432935,1765648247334,-500.0,0.00017725,2]
[398432936,1765648247349,-150.0,0.00017725,2]
[398432937,1765648247364,-500.0,0.00017725,2]
[398432938,1765648247379,-1221.0,0.00017725,2]
[398432939,1765648247395,-152.6264382,0.00017725,2]
[398432940,1765648247412,-500.0,0.00017725,2]
[398432941,1765648247432,-500.0,0.00017725,2]
[398432942,1765648247447,-65.49415931,0.00017725,2]
[398432943,1765648247466,-434.50584069,0.00017725,2]
[398432944,1765648247481,-72.72506381,0.00017725,2]
[398432945,1765648247501,-427.27493619,0.00017725,2]
[398432946,1765648247515,-150.0,0.00017725,2]
[398432947,1765648247532,-150.0,0.00017725,2]
[398432948,1765648247547,-150.0,0.00017725,2]
[398432949,1765648247561,-27.37169129,0.00017725,2]
[398432950,1765648247578,-122.62830871,0.00017725,2]
[398432951,1765648247594,-500.0,0.00017725,2]
[398432952,1765648247608,-150.0,0.00017725,2]
[398432953,1765648247623,-150.0,0.00017725,2]
[398432954,1765648247639,-500.0,0.00017725,2]
[398432955,1765648247658,-488.0,0.00017725,2]
[398432956,1765648247673,-500.0,0.00017725,2]
[398432957,1765648247688,-278.38503529,0.00017725,2]
[398432958,1765648247703,-150.0,0.00017725,2]
[398432959,1765648247719,-150.0,0.00017725,2]
[398432960,1765648247733,-151.0906704,0.00017725,2]
[398432961,1765648247748,-150.0,0.00017725,2]
[398432962,1765648247763,-500.0,0.00017725,2]
[398432963,1765648247778,-150.0,0.00017725,2]
[398432964,1765648247793,-150.0,0.00017725,2]
[398432965,1765648247809,-500.0,0.00017725,2]
[398432966,1765648247824,-1421.93097406,0.00017733,2]
[398432967,1765648247839,-300.0,0.00017761,2]
[398432968,1765648247853,-300.0,0.00017767,2]
[398432969,1765648247868,-1000.0,0.00017771,2]
[398432970,1765648247884,-168.0,0.00017774,2]
[398432971,1765648247899,-10255.25850494,0.00017788,2]
[398432972,1765648247914,-190.0,0.00017794,2]
[398432973,1765648247928,-1000.0,0.00017797,2]
[398432974,1765648247942,-300.0,0.00017797,2]
[398432975,1765648247957,-426.97269879,0.00017798,2]
[398432976,1765648247971,-10000.0,0.000178,2]
[398432977,1765648247986,-300.0,0.00017804,2]
[398432978,1765648248000,-561.62,0.00017808,2]
[398432979,1765648248015,-500.0,0.00017808,2]
[398432980,1765648248030,-500.0,0.00017817,2]
[398432981,1765648248044,-1117.6733837,0.00017817,2]
[398432982,1765648248060,-19703.5067716,0.00017838,2]
[398432983,1765648248088,-1495.55293414,0.00016401,2]
[398432984,1765648248102,-10372.85658314,0.00017838,2]
[398432985,1765648248119,-4184.42120605,0.00017838,2]
[398432986,1765648253548,-336.8373025,0.00016059,2]
[398432987,1765648253593,-500.0,0.00016438,2]
[398432988,1765648254224,-500.0,0.00016438,2]
[398432989,1765648254250,-500.0,0.00016438,2]
[398432990,1765648254274,-500.0,0.00016735,2]
[398432991,1765648254299,-172.58113192,0.00016735,2]
[398432992,1765648254323,-253.08782433,0.00016735,2]
[398432993,1765648254348,-286.34012987,0.00016964,2]
[398432994,1765648255823,500.0,0.00016059,2]
[398432995,1765648255856,500.0,0.00016059,2]
[398432996,1765648255911,500.0,0.00016059,2]
[398432997,1765648255968,500.0,0.00016059,2]
[398432998,1765648256027,500.0,0.00016059,2]
[398432999,1765648256434,281.17409414,0.00016059,2]
[398433000,1765648258592,587.91815792,0.00016899,2]
[398433002,1765648264496,500.0,0.00016438,2]
[398433003,1765648264764,500.0,0.00016438,2]
[398433004,1765648264796,500.0,0.00016438,2]
[398433005,1765648264840,500.0,0.00016438,2]
[398433006,1765648264873,500.0,0.00016438,2]
[398433007,1765648264908,500.0,0.00016438,2]
[398433008,1765648264946,500.0,0.00016438,2]
[398433009,1765648264985,500.0,0.00016438,2]
[398433010,1765648265020,500.0,0.00016438,2]
[398433011,1765648265070,500.0,0.00016438,2]
[398433012,1765648265103,500.0,0.00016438,2]
[398433013,1765648265138,340.600298,0.00016438,2]
[398433014,1765648265172,500.0,0.00016438,2]
[398433015,1765648265205,500.0,0.00016438,2]
[398433016,1765648265238,500.0,0.00016438,2]
[398433017,1765648265279,500.0,0.00016438,2]
[398433018,1765648265314,500.0,0.00016438,2]
[398433019,1765648265358,500.0,0.00016438,2]
[398433020,1765648265393,500.0,0.00016438,2]
[398433021,1765648265427,500.0,0.00016438,2]
[398433022,1765648265460,500.0,0.00016438,2]
[398433023,1765648267016,500.0,0.00016438,2]
[398433024,1765648267075,500.0,0.00016438,2]
[398433025,1765648267114,500.0,0.00016438,2]
[398433026,1765648267832,547.57611189,0.00016972,2]
[398433027,1765648269520,195.0,0.0001674,2]
[398433028,1765648270248,300.0,0.0001674,2]
[398433029,1765648272709,-25000.0,0.00017838,3]
[398433030,1765648272736,-481.04173315,0.00017838,3]
[398433031,1765648272763,-25000.0,0.00017847,3]
[398433032,1765648272788,-481.04173315,0.00017847,3]
[398433033,1765648272814,-25000.0,0.00017856,3]
[398433034,1765648272843,-25000.0,0.00017865,3]
[398433035,1765648272868,-381.78266953,0.00017865,3]
[398433036,1765648272895,-25000.0,0.00017874,3]
[398433037,1765648272917,-25000.0,0.00017874,3]
[398433038,1765648272943,-25000.0,0.00017882,3]
[398433039,1765648272970,-25000.0,0.00017882,3]
[398433040,1765648279188,-587.91815791,0.00017042,2]
[398433041,1765648279212,-250.0,0.0001713,2]
[398433042,1765648279235,-300.0,0.00017147,2]
[398433043,1765648279258,-300.0,0.00017147,2]
[398433044,1765648279283,-300.0,0.00017147,2]
[398433045,1765648279306,-587.91815791,0.00017185,2]
[398433046,1765648279330,-6520.0,0.00017218,2]
[398433047,1765648279353,-211.0,0.00017218,2]
[398433048,1765648279376,-260.0,0.00017218,2]
[398433049,1765648279401,-150.59,0.00017218,2]
[398433050,1765648279427,-1196.0,0.00017302,2]
[398433051,1765648279452,-587.91815791,0.00017328,2]
[398433052,1765648279475,-250.0,0.00017408,2]
[398433053,1765648279498,-500.0,0.0001747,2]
[398433054,1765648279524,-587.91815791,0.00017471,2]
[398433055,1765648279548,-152.80097449,0.00017567,2]